Cogmind - Beta 11 @@@ ROGUE MODE // 2022.04.09 @ 20:59:20 Player: Jezoensis Result: Destroyed by D-53 Grenadier with Mini Grenade Launcher Performance ------------- Evolutions (0) 0 Regions Visited (4) 800 Robots Destroyed (17) 85 Value Destroyed (368) 368 Prototype IDs (24) 480 Alien Tech Used (0) 0 Bonus (300) 300 TOTAL SCORE: 2033 Bonus ------- Aligned with FarCom 300 Cogmind --------- Core Integrity 0/250 Matter 263/300 Energy 280/280 System Corruption 0% Temperature Cool (0) Movement Core (500) Ox9 Location -9/Mines Parts ------- > --- POWER (1) -------- Heavy Ion Engine > --- PROPULSION (2) --- (None) > --- UTILITY (2) ------ Large Storage Unit > --- WEAPON (2) ------- Assault Rifle > --- INVENTORY (15) --- Heavy Ion Engine Flying Fortress v7 Improved Heat Sink High-capacity Storage Unit High-capacity Matter Pod (200) Structural Scanner Visual Processing Unit Improved Terrain Scanner Light Assault Rifle Light Assault Rifle Mining Laser Peak State ------------ > --- POWER ------------ Heavy Ion Engine > --- PROPULSION ------- Light Treads Light Treads > --- UTILITY ---------- Large Storage Unit Medium Armor Plating > --- WEAPON ----------- Assault Rifle Assault Rifle > --- INVENTORY -------- Heavy Ion Engine Light Treads Flying Fortress v7 Improved Heat Sink High-capacity Storage Unit High-capacity Matter Pod Structural Scanner Visual Processing Unit Improved Terrain Scanner Light Assault Rifle Light Assault Rifle Mining Laser [Rating: 15] Favorites ----------- Power Heavy Ion Engine Engine Heavy Ion Engine Propulsion Light Treads Treads Light Treads Utility Large Storage Unit Device Structural Scanner Storage Large Storage Unit Protection Medium Armor Plating Weapon Assault Rifle Energy Gun EM Pulse Gun Ballistic Gun Assault Rifle Special Weapon Mining Laser Build | -11 -10 -10 -10 -9 ------- Run | Scr Mat Min Exi Min Slots Evolved . | . . . . . Power . | . . . . . Propulsion . | . . . . . Utility . | . . . . . Weapon . | . . . . . Parts Attached 28 | 7 12 6 . 3 Power 3 | 1 2 . . . Engine 3 | 1 2 . . . Core . | . . . . . Reactor . | . . . . . Propulsion 3 | 2 . . . 1 Treads 3 | 2 . . . 1 Leg . | . . . . . Wheel . | . . . . . Hover . | . . . . . Flight . | . . . . . Utility 13 | 2 7 3 . 1 Device 6 | 1 3 2 . . Storage 2 | 1 1 . . . Processor . | . . . . . Hackware . | . . . . . Protection 5 | . 3 1 . 1 Artifact . | . . . . . Weapon 9 | 2 3 3 . 1 Energy Gun 2 | . 2 . . . Energy Cannon . | . . . . . Ballistic Gun 5 | 2 . 2 . 1 Ballistic Cannon . | . . . . . Launcher . | . . . . . Special Weapon 2 | . 1 1 . . Impact Weapon . | . . . . . Slashing Weapon . | . . . . . Piercing Weapon . | . . . . . Special Melee Weapon . | . . . . . Unidentified Prototypes 1 | . 1 . . . Parts Lost 6 | . . 1 . 5 Power . | . . . . . Propulsion 3 | . . . . 3 Utility 1 | . . . . 1 Weapon 2 | . . 1 . 1 Highest Loss Streak 5 | . . 1 . 5 To Critical Strikes . | . . . . . Average Slot Usage (%) 99 | . 100 99 100 88 Engine 14 | . 14 14 14 14 Treads 27 | . 28 28 28 25 Device 12 | . 11 12 14 . Storage 14 | . 14 14 14 14 Protection 1 | . 2 1 . 8 Energy Gun 4 | . 8 2 . . Ballistic Gun 23 | . 19 25 28 25 Naked Turns . | . . . . . Heaviest Build 39 | 13 39 39 33 39 Greatest Support 40 | 40 40 40 40 40 Greatest Overweight (x) 1 | . . . . 1 Average Overweight (x) . | . . . . . Largest Inventory Capacity 15 | 8 15 15 15 15 Average Capacity 13 | 7 11 15 15 15 Most Carried 15 | 5 12 13 15 15 Average Carried 9 | 2 7 11 13 14 Final Capacity 15 | 8 15 15 15 15 Final Carried 15 | 3 11 12 15 14 Class Distribution -------------------- 100% | Mutant Dominant Class ---------------- Mutant | -10/Materials Mutant | -10/Mines Mutant | -10/Exiles Mutant | -9/Mines Resources | -11 -10 -10 -10 -9 ----------- Run | Scr Mat Min Exi Min Matter Collected 657 | 336 245 76 . . Remotely . | . . . . . Salvage Created 666 | 147 430 89 . . Parts 39 | 11 25 3 . . Haulers Intercepted 2 | . 2 . . . Recyclers Shooed 1 | . 1 . . . Parts Field Recycled . | . . . . . Retrieved Matter . | . . . . . Parts Self-Destructed . | . . . . . Prevented . | . . . . . Kills | -11 -10 -10 -10 -9 ------- Run | Scr Mat Min Exi Min Combat Hostiles Destroyed 8 | . 6 2 . . Guns 8 | . 6 2 . . Classes Destroyed 5 | 2 3 . . . Tunneler 4 | 4 . . . . Hauler 2 | . 2 . . . Recycler 1 | 1 . . . . Watcher 2 | . 2 . . . Grunt 8 | . 6 2 . . Best Kill Streak 2 | 2 2 2 . . Combat Bots Only 2 | . 2 2 . . Max Kills in Single Turn 1 | 1 1 1 . . Gunslinging . | . . . . . Exploded . | . . . . . Melee . | . . . . . Uniques/NPCs Destroyed . | . . . . . Combat | -11 -10 -10 -10 -9 -------- Run | Scr Mat Min Exi Min Damage Taken 1304 | . 451 95 . 758 Core 251 | . 62 21 . 168 Absorbed by Shields . | . . . . . Core Remaining (%) 100 | 100 . . . . Volleys Fired 59 | 11 40 6 . 2 Largest 2 | 2 2 2 . 2 Hottest 100 | 40 100 100 . 40 Shots Fired 115 | 22 78 11 . 4 Gun 112 | 22 76 10 . 4 Cannon . | . . . . . Launcher . | . . . . . Special 3 | . 2 1 . . Kinetic 81 | 22 45 10 . 4 Thermal 3 | . 2 1 . . Explosive . | . . . . . Electromagnetic 31 | . 31 . . . Robot Hit Streak 10 | 10 8 5 . 1 Robot Miss Streak 3 | 1 3 1 . 1 Penetration Max . | . . . . . Secondary Targets . | . . . . . Shots Hit Robots 71 | 16 45 8 . 2 Core Hits 30 | 6 19 5 . . Critical Kills . | . . . . . Critical Parts Destroyed . | . . . . . Critical Strikes . | . . . . . Melee Attacks . | . . . . . Impact . | . . . . . Slashing . | . . . . . Piercing . | . . . . . Sneak Attacks . | . . . . . Combat Hostiles . | . . . . . Follow-up Attacks . | . . . . . Damage Inflicted 1015 | 201 679 108 . 27 Guns 981 | 201 645 108 . 27 Cannons . | . . . . . Explosions 34 | . 34 . . . Melee . | . . . . . Ramming . | . . . . . Kinetic 640 | 201 304 108 . 27 Thermal 34 | . 34 . . . Explosive . | . . . . . Electromagnetic 341 | . 341 . . . Impact . | . . . . . Slashing . | . . . . . Piercing . | . . . . . Highest Corruption . | . . . . . Average Corruption . | . . . . . Corruption Purged . | . . . . . Corruption Blocked . | . . . . . Overload Shots . | . . . . . Overflow Damage . | . . . . . Projectiles . | . . . . . Explosions . | . . . . . Melee . | . . . . . Knockbacks . | . . . . . Impact . | . . . . . Kinetic . | . . . . . Secondary . | . . . . . Self-Inflicted Damage . | . . . . . Shots . | . . . . . Rammed 1 | . . 1 . . Targets Rammed 1 | . . 1 . . Kicked . | . . . . . Crushed . | . . . . . Highest Temperature 238 | 6 238 24 . . Average Temperature 64 | 6 73 7 . . Received Heat Transfer 315 | . 261 54 . . Siege Activations . | . . . . . Robots Corrupted . | . . . . . Combat Hostiles . | . . . . . Parts Fried 2 | . 2 . . . Impact Corruptions . | . . . . . Robots Melted . | . . . . . Combat Hostiles . | . . . . . Parts Melted . | . . . . . Heat Transferred 100 | . 100 . . . Parts Sabotaged . | . . . . . Parts Stolen . | . . . . . Parts Stripped . | . . . . . Power Chain Reactions 1 | . 1 . . . Missiles Intercepted . | . . . . . Alert | -11 -10 -10 -10 -9 ------- Run | Scr Mat Min Exi Min Peak Influence 281 | 25 281 155 . . Initial 109 | . 16 109 . . Average 93 | 12 112 92 . . Maximum Alert Level 1 | . 1 . . . Low Security (%) 89 | 100 78 100 . 100 Level 1 10 | . 21 . . . Level 2 . | . . . . . Level 3 . | . . . . . Level 4 . | . . . . . Level 5 . | . . . . . High Security . | . . . . . Max Security . | . . . . . Squads Dispatched 3 | . 3 . . . Investigation . | . . . . . Extermination . | . . . . . Reinforcement 3 | . 3 . . . Assault . | . . . . . Garrison . | . . . . . Intercept . | . . . . . Searches Triggered . | . . . . . Construction Impeded . | . . . . . Haulers Reinforced . | . . . . . Active Scanning Responses . | . . . . . Cargo Convoy Interrupts . | . . . . . Stealth | -11 -10 -10 -10 -9 --------- Run | Scr Mat Min Exi Min Distress Signals 1 | . 1 . . . Communications Jammed . | . . . . . Distress Signals . | . . . . . Times Spotted 31 | . 22 2 . 7 Peak Tracking Total 7 | . 7 2 . 7 Tactical Retreats 2 | . 2 . . . Traps | -11 -10 -10 -10 -9 ------- Run | Scr Mat Min Exi Min Traps Triggered . | . . . . . Indirectly . | . . . . . Trap Hack Attempts . | . . . . . Triggered . | . . . . . Disarmed . | . . . . . Reprogrammed . | . . . . . Reused . | . . . . . Traps Extracted . | . . . . . Installed . | . . . . . Triggered . | . . . . . Machines | -11 -10 -10 -10 -9 ---------- Run | Scr Mat Min Exi Min Machines Disabled . | . . . . . Max in Single Turn . | . . . . . Machines Sabotaged . | . . . . . Garrisons Compromised . | . . . . . Overloaded Fab Kills . | . . . . . Hacking | -11 -10 -10 -10 -9 --------- Run | Scr Mat Min Exi Min Machines Accessed 8 | . 6 1 1 . Terminals 6 | . 5 1 . . Fabricators . | . . . . . Repair Stations . | . . . . . Recycling Units 1 | . 1 . . . Scanalyzers . | . . . . . Garrison Access . | . . . . . Total Hacks 22 | . 18 3 1 . Successful 12 | . 10 1 1 . Failed 10 | . 8 2 . . Catastrophic 1 | . . 1 . . Database Lockouts . | . . . . . Manual 20 | . 16 3 1 . Terminals 20 | . 17 3 . . Fabricators . | . . . . . Repair Stations . | . . . . . Recycling Units 1 | . 1 . . . Scanalyzers . | . . . . . Garrison Access . | . . . . . Terminal Hacks 8 | . 6 1 1 . Part Schematic 1 | . 1 . . . Robot Analysis 5 | . 4 1 . . Terminal Index 1 | . 1 . . . EX-Prototype ID Bank 1 | . . . 1 . Fabricator Hacks . | . . . . . Repair Station Hacks . | . . . . . Recycling Unit Hacks . | . . . . . Scanalyzer . | . . . . . Garrison Access Hacks . | . . . . . Unauthorized Hacks 4 | . 4 . . . Terminals 3 | . 3 . . . Track 1 | . 1 . . . Botnet 1 | . 1 . . . Operators 1 | . 1 . . . Fabricators . | . . . . . Repair Stations . | . . . . . Recycling Units 1 | . 1 . . . Recyclers 1 | . 1 . . . Scanalyzers . | . . . . . Garrison Access . | . . . . . Data Cores Recovered . | . . . . . Used . | . . . . . Hacking Detections 6 | . 5 1 . . Full Trace Events . | . . . . . Feedback Events . | . . . . . Feedback Blocked . | . . . . . Robot Schematics Acquired . | . . . . . Robots Built . | . . . . . Authchips . | . . . . . Time . | . . . . . Total Robot Build Rating . | . . . . . Part Schematics Acquired 1 | . 1 . . . Parts Built . | . . . . . Authchips . | . . . . . Time . | . . . . . Total Part Build Rating . | . . . . . Parts Repaired . | . . . . . Time . | . . . . . Parts Recycled . | . . . . . Recycled Matter . | . . . . . Retrieved Matter . | . . . . . Retrieved Components . | . . . . . Parts Scanalyzed . | . . . . . Part Schematics Acquired . | . . . . . Parts Damaged . | . . . . . Bothacking | -11 -10 -10 -10 -9 ------------ Run | Scr Mat Min Exi Min Used RIF Installer . | . . . . . Robots Hacked . | . . . . . Non-combat . | . . . . . Combat . | . . . . . Robot Hacks Applied . | . . . . . Relay Couplers Released . | . . . . . Fabnet Peak Effective % . | . . . . . Robots Rewired . | . . . . . Allies Hacked . | . . . . . Hacks Repelled . | . . . . . Allies | -11 -10 -10 -10 -9 -------- Run | Scr Mat Min Exi Min Total Allies . | . . . . . Largest Group . | . . . . . Highest-Rated Group . | . . . . . Highest-Rated Ally . | . . . . . Total Orders . | . . . . . Ally Attacks . | . . . . . Total Damage . | . . . . . Kills . | . . . . . Allies Corrupted . | . . . . . Allies Melted . | . . . . . Intel | -11 -10 -10 -10 -9 ------- Run | Scr Mat Min Exi Min Robot Analysis Total 5 | . 4 1 . . Derelict Logs Recovered 2 | . . 2 . . Drone Launches . | . . . . . Drone Recoveries . | . . . . . Exploration | -11 -10 -10 -10 -9 ------------- Run | Scr Mat Min Exi Min Turns Passed 1940 | 123 771 608 394 44 Spaces Moved 1072 | 67 380 358 246 21 Core 28 | 28 . . . . Treads 1044 | 39 380 358 246 21 Legs . | . . . . . Wheels . | . . . . . Hover . | . . . . . Flight . | . . . . . Fastest Speed 50 | 50 160 160 160 160 Average Speed 157 | 114 160 160 160 163 Slowest Speed 240 | 160 160 160 160 240 Overloaded Moves . | . . . . . Propulsion Burnouts . | . . . . . Robots Hopped . | . . . . . Cave-ins Triggered . | . . . . . Exploration Rate (%) 44 | 4 63 76 65 14 Regions Visited 4 Branch Regions 3 Pre-discovered Areas 1 | . . 1 . . Known Exits Taken . | . . . . . Unknown Exits Taken 4 | 1 1 1 1 . Scrap Searched 2 | . . 2 . . Spaces Dug 3 | . 2 1 . . Terrain Destroyed 6 | . 5 1 . . Melee . | . . . . . Projectile 3 | . 2 1 . . AOE 3 | . 3 . . . Terrain Rammed . | . . . . . Walls Destroyed . | . . . . . Machines Disabled . | . . . . . Actions | -11 -10 -10 -10 -9 --------- Run | Scr Mat Min Exi Min Total 1204 | 90 461 378 249 26 Wait 8 | . 6 2 . . Move 1068 | 66 379 357 245 21 Hop . | . . . . . Pick Up 26 | 6 14 4 2 . Fast Attach 6 | 4 1 . . 1 Attach 6 | 3 1 1 . 1 Detach 1 | . 1 . . . Swap 16 | . 10 5 . 1 Drop 13 | . 9 2 2 . Fire 59 | 11 40 6 . 2 Melee . | . . . . . Ram . | . . . . . Kick . | . . . . . Crush 1 | . . 1 . . Escape Stasis . | . . . . . Rewire . | . . . . . Trap . | . . . . . Miscellaneous . | . . . . . Route ------- -11/Scrapyard -10/Materials (discovered 4 exits: [*Mat x3] / *Min) -10/Mines (discovered 2 exits: [*Mat] / *Exi) -10/Exiles -9/Mines History --------- Turn | Location | Event 10 | -11/Scrapyard | Discovered new exit (range 16) 124 | -11/Scrapyard | Entered Materials 210 | -10/Materials | Discovered new exit (range 16) 315 | -10/Materials | Build established: Mutant 514 | -10/Materials | Discovered new exit (range 7) 724 | -10/Materials | Discovered new exit (range 15) 780 | -10/Materials | Discovered new exit (range 16) 895 | -10/Materials | Entered Mines 996 | -10/Mines | Discovered new exit (range 5) 1162 | -10/Mines | Learned Materials security intel 1496 | -10/Mines | Deemed a non-threat by the Exiles lab entrance 1496 | -10/Mines | Discovered new exit (range 5) 1503 | -10/Mines | Entered Exiles 1542 | -10/Exiles | Met 8R-AWN 1569 | -10/Exiles | Met EX-HEX 1662 | -10/Exiles | Met EX-BIN 1678 | -10/Exiles | Aligned with FarCom system 1679 | -10/Exiles | Given EX-Vault access code 1716 | -10/Exiles | Opened EX-Vault 1730 | -10/Exiles | Found Flying Fortress v7 1761 | -10/Exiles | Warned to stay clear of 0b10 Research branches 1783 | -10/Exiles | Exiles lab attacked by MAIN.C 1885 | -10/Exiles | Discovered new exit (range 10) 1897 | -10/Exiles | Left Exiles lab with Flying Fortress v7 1897 | -10/Exiles | Entered Mines 1903 | -9/Mines | Assembled infested the area 1927 | -9/Mines | Core integrity fell below 50% 1940 | -9/Mines | Core integrity fell below 20% 1941 | -9/Mines | Destroyed by D-53 Grenadier with Mini Grenade Launcher Last Messages --------------- GOAL=ESCAPE 01897_ Receiving FarCom transmissions... 01898_ 5L-KAT: "That was close. Too bad in all the rush we got split up from the others." 01903_ ALERT: Infestation in the mines, dispatching Demolisher response squad. 01903_ 5L-KAT destroyed. 01912_ C-30 ARC bursts open, deploying its payload. 01912_ D-53 Grenadier unfolds itself. 01923_ Lgt. Treads destroyed. 01926_ Assault Rifle severed. 01927_ Acquired Assault Rifle. 01928_ as-92177 destroyed. 01928_ Med. Armor Plating destroyed. 01928_ as-51608 destroyed. 01929_ S-10 Pest destroyed. 01937_ Assault Rifle destroyed. 01939_ Lgt. Treads destroyed. 01941_ The unstable cave ceiling collapses. 01941_ Lgt. Treads destroyed. Map ----- +----------------------------------------------------+ | ???????????????????????????????????? | | ???????????????????????????????????? | | ???????????????????????????????????? | | ???????????????????????????????????? | | ???????????????????????????????????? | | ?????????????????## ?????####### ?? | | ?????????????????## ????#### ??? | | ?????????????????# #### ???? | | ???????????????????? #### ???? | | ????????????????????? ????? | | ??????????????????????? " ?????? | | ???????????????????????##%" ###???? | | ???????????????????????##" %####??? | | ???????????????????????## = ###??? | | ???????????????????????### ###?? | | ???????????????????????# ##?? | | ???????????????????????# ##?? | | ?????????????????????### = ###?? | | ??????????###??????### s % ####?? | | ?????????? #??#### ###??? | | ??????????# #### ##????? | | ???????#### ## ds ### ##?????? | | ??????## ## d ### #??????? | | ??????# ### #??????? | | ??????## ### ??????? | | ?????## @ #######?????? | | ?????# ######???????? | | ?????# =%! ?????? | | ????# ##### ##???????? | | ???# #????? #????????? | | ???# ## # ###??????#????????? | | ???# ? ######?????????????????? | | ???## ?### ???????????????????????? | | ????##????? ???????????????????????? | | ??????????? ???????????????????????? | | ??????????? ???????????????????????? | | ??????????? ???????????????????????? | | ??????????# ???????????????????????? | | ??????????##???????????????????????? | | ??????????????s????????????????????? | | ???????????????????????????????????? | | ??????????????s????????????????????? | | ??????????????s????????????????????? | | ???????????????????????????????????? | | ???????????????????????????????????? | | ???????????????????????????????????? | | ???????????????????????????????????? | | ???????????????????????????????????? | | ???????????????????????????????????? | | ???????????????????????????????????? | +----------------------------------------------------+ Best States ------------- Heat Dissipation 25 Energy Generation 14 Energy Capacity 280 Matter Stores 300 Matter Capacity 300 Sight Range 16 Terrain Scan Range 16 Terrain Scan Density 10 Armor Coverage 225 Evasion (%) 50 Recoil Reduction 2 Item Schematics ----------------- Hcp. Storage Unit | -10/Materials | Hacked Robot Schematics ------------------ None Fabricated ------------ Nothing Alien Tech Used ----------------- None Achievements -------------- None Challenges ------------ None Game ------ Seed AntigravRegenerativeUnit Manual? 0 Play Time 00:15:41 Cumulative 584.7 hours Start 2022.04.09 @ 20:43:33 End 2022.04.09 @ 20:59:20 Sessions 1 Manual Loads 0 Difficulty Rogue Special Mode None Game No. 288 Rogue 161 Adventurer 125 Explorer 2 Win Type - Total 55 Types 47/3/2/1/1/0/0/0/1 Lore% 72 Gallery% 85 Achievement% 68 Wizard Run 0 Options --------- ASCII 0 Keyboard 1 Movement Numpad Keybinds 0 Fullscreen 1 Font 36/TerminusFine Map View 76x50 Tactical HUD 1 Map Filters NONE Filters NONE Steam 1 RUN: 25c409a2-6c53-4f67-b6c5-ca216c98ff44